bitfinex/quotes_SOLUSD_20230703
["timestamp","ask_amount","ask_price","bid_price","bid_amount"]
[1688397079184,22.166,19.084,19.079,22.17]
[1688397079384,55.0,19.083,19.071,104.186]
[1688397079594,22.17,19.08,19.075,22.174]
[1688397079799,55.0,19.079,19.075,22.174]
[1688397080505,55.0,19.08,19.075,22.174]
[1688397081183,57.055,19.087,19.075,22.174]
[1688397081384,55.0,19.086,19.075,22.174]
[1688397082204,22.165,19.084,19.075,22.174]
[1688397082397,22.164,19.085,19.075,22.174]
[1688397082601,57.05,19.089,19.075,22.174]
[1688397083709,22.165,19.084,19.075,22.174]
[1688397083903,55.0,19.083,19.075,22.174]
[1688397084207,77.166,19.083,19.075,22.174]
[1688397084594,55.0,19.083,19.075,22.174]
[1688397084796,55.0,19.084,19.075,22.174]
[1688397085486,55.0,19.085,19.075,22.174]
[1688397085692,77.164,19.085,19.075,22.174]
[1688397087285,55.0,19.085,19.075,22.174]
[1688397088112,55.0,19.086,19.075,22.174]
[1688397089800,77.163,19.086,19.075,22.174]
[1688397098507,77.163,19.086,19.069,57.105]
[1688397098508,88.00019922,19.086,19.069,57.105]
[1688397098817,88.00019922,19.086,19.072,22.178]
[1688397098999,88.00019922,19.086,19.069,57.105]
[1688397099000,20.0,19.085,19.069,57.105]
[1688397099199,183.379,19.081,19.071,22.179]
[1688397099598,55.0,19.08,19.071,22.179]
[1688397099909,22.172,19.078,19.071,22.179]
[1688397100117,22.175,19.076,19.067,57.112]
[1688397100298,22.175,19.076,19.064,104.226]
[1688397100494,77.176,19.075,19.071,22.179]
[1688397101313,77.176,19.075,19.07,22.18]
[1688397101813,55.0,19.075,19.07,22.18]
[1688397102212,104.129,19.083,19.07,22.18]
[1688397102419,20.0,19.085,19.07,22.18]
[1688397102420,22.168,19.082,19.07,22.18]
[1688397102598,22.168,19.082,19.071,20.0]
[1688397102921,22.168,19.082,19.074,79.268]
[1688397103099,22.167,19.083,19.074,79.268]
[1688397103413,22.165,19.084,19.074,79.268]
[1688397103602,22.18,19.087,19.074,79.268]
[1688397103811,22.163,19.086,19.074,79.268]
[1688397105014,83.71330407,19.09,19.074,79.268]
[1688397105307,57.043,19.091,19.075,97.015]
[1688397105308,22.16,19.089,19.075,97.015]
[1688397105615,22.16,19.089,19.079,79.247]
[1688397107715,57.043,19.093,19.079,79.247]
[1688397107902,22.159,19.089,19.079,79.247]
[1688397109019,77.161,19.088,19.079,79.247]
[1688397109506,55.0,19.088,19.079,79.247]
[1688397111117,77.16,19.088,19.079,79.247]
[1688397111808,55.0,19.088,19.079,79.247]
[1688397112019,55.0,19.089,19.079,79.247]
[1688397112220,22.16,19.088,19.079,79.247]
[1688397112431,55.0,19.087,19.079,79.247]
[1688397112613,77.162,19.087,19.079,79.247]
[1688397117118,55.0,19.087,19.079,79.247]
[1688397117500,22.162,19.087,19.079,22.17]
[1688397117700,22.168,19.082,19.074,22.176]
[1688397118122,55.0,19.081,19.074,22.176]
[1688397118616,57.068,19.083,19.074,22.176]
[1688397118617,55.0,19.082,19.074,22.176]
[1688397119212,22.169,19.081,19.074,22.176]
[1688397119415,55.0,19.08,19.074,22.176]
[1688397119611,22.169,19.081,19.074,22.176]
[1688397119811,55.0,19.08,19.074,22.176]
[1688397120006,77.168,19.082,19.074,22.176]
[1688397120321,55.0,19.082,19.074,22.176]
[1688397120914,22.165,19.085,19.074,22.176]
[1688397121122,22.162,19.087,19.074,22.176]
[1688397122718,55.0,19.086,19.074,22.176]
[1688397122917,77.162,19.086,19.074,22.176]
[1688397123118,55.0,19.086,19.074,22.176]
[1688397123523,77.163,19.086,19.074,22.176]
[1688397125533,55.0,19.086,19.074,22.176]
[1688397125835,77.163,19.086,19.074,22.176]
[1688397126932,55.0,19.086,19.074,22.176]
[1688397130033,77.163,19.086,19.074,22.176]
[1688397131537,55.0,19.086,19.074,22.176]
[1688397132332,22.16,19.088,19.074,22.176]
[1688397133623,22.164,19.085,19.074,22.176]
[1688397133837,55.0,19.084,19.074,22.176]
[1688397134942,77.165,19.084,19.074,22.176]
[1688397135123,22.165,19.084,19.074,22.176]
[1688397135319,77.166,19.083,19.074,22.176]
[1688397136335,55.0,19.083,19.074,22.176]
[1688397137039,55.0,19.084,19.074,22.176]
[1688397137232,77.165,19.084,19.074,22.176]
[1688397137427,55.0,19.084,19.074,22.176]
[1688397138743,22.161,19.087,19.074,22.176]
[1688397139048,55.0,19.091,19.074,22.176]
[1688397139049,22.16,19.089,19.074,22.176]
[1688397139229,23.0,19.112,19.074,22.176]
[1688397139429,97.7884,19.099,19.074,22.176]
[1688397139649,22.158,19.09,19.074,22.176]
[1688397141046,22.162,19.087,19.074,22.176]
[1688397141244,55.0,19.086,19.074,22.176]
[1688397141432,77.162,19.086,19.074,22.176]
[1688397141633,55.0,19.086,19.074,22.176]
[1688397142244,55.0,19.087,19.074,22.176]
[1688397143843,57.043,19.091,19.074,22.176]
[1688397143844,77.161,19.088,19.074,22.176]
[1688397146741,55.0,19.088,19.074,22.176]
[1688397148248,77.16,19.088,19.074,22.176]
[1688397153845,3.0,19.102,19.074,22.176]
[1688397154054,42.155,19.093,19.074,22.176]
[1688397154258,42.155,19.093,19.08,183.381]
[1688397155435,77.156,19.092,19.08,183.381]
[1688397155646,20.0,19.091,19.08,183.381]
[1688397155947,42.157,19.091,19.08,183.381]
[1688397156756,20.0,19.091,19.08,183.381]
[1688397157266,42.157,19.091,19.08,183.381]
[1688397157557,77.158,19.09,19.08,183.381]
[1688397157863,55.0,19.09,19.08,183.381]
[1688397160439,77.158,19.09,19.08,183.381]
[1688397171959,55.0,19.09,19.08,183.381]
[1688397172366,57.028,19.095,19.081,20.0]
[1688397172662,22.155,19.093,19.085,79.222]
[1688397173162,22.157,19.091,19.085,79.222]
[1688397173361,55.0,19.09,19.085,79.222]
[1688397173546,77.156,19.092,19.085,79.222]
[1688397174452,22.154,19.094,19.085,79.222]
[1688397175950,55.0,19.093,19.085,79.222]
[1688397176157,77.155,19.093,19.085,79.222]
[1688397178153,55.0,19.093,19.085,79.222]
[1688397178561,55.0,19.094,19.085,79.222]
[1688397178969,77.153,19.094,19.085,79.222]
[1688397179970,77.153,19.094,19.085,22.163]
[1688397180186,20.0,19.093,19.077,104.153]
[1688397180370,22.16,19.089,19.077,104.153]
[1688397180570,55.0,19.088,19.081,22.167]
[1688397180782,22.162,19.086,19.081,22.167]
[1688397181076,77.164,19.085,19.08,22.168]
[1688397182962,77.164,19.085,19.071,96.3998]
[1688397183158,134.224,19.085,19.074,22.175]
[1688397183466,77.164,19.085,19.074,22.175]
[1688397184059,124.073,19.093,19.074,22.175]
[1688397184262,57.041,19.092,19.074,22.175]
[1688397184477,20.0,19.091,19.074,22.175]
[1688397185572,55.0,19.09,19.074,22.175]
[1688397185860,22.159,19.089,19.074,22.175]
[1688397186060,22.162,19.087,19.074,22.175]
[1688397186262,77.162,19.086,19.074,22.175]
[1688397186457,55.0,19.085,19.074,22.175]
[1688397187076,22.162,19.086,19.074,22.175]
[1688397187270,22.161,19.088,19.074,22.175]
[1688397188374,57.093,19.094,19.075,75.0]
[1688397188558,57.093,19.094,19.08,183.377]
[1688397188763,57.028,19.096,19.081,83.0771]
[1688397189070,22.156,19.092,19.085,79.223]
[1688397189265,22.155,19.093,19.085,79.223]
[1688397190575,55.0,19.092,19.085,79.223]
[1688397190979,55.0,19.093,19.085,79.223]
[1688397193580,55.0,19.094,19.085,79.223]
[1688397195262,77.153,19.094,19.085,79.223]
[1688397196986,55.0,19.094,19.085,79.223]
[1688397197184,77.153,19.094,19.085,79.223]
[1688397199671,77.153,19.094,19.085,22.163]
[1688397202787,55.0,19.094,19.085,22.163]
[1688397204091,77.153,19.094,19.085,22.163]
[1688397205474,55.0,19.094,19.085,22.163]
[1688397205692,22.15,19.097,19.085,22.163]
[1688397207093,55.0,19.096,19.085,22.163]
[1688397208002,77.151,19.096,19.085,22.163]
[1688397208495,55.0,19.096,19.085,22.163]
[1688397208997,77.15,19.097,19.085,22.163]
[1688397211595,55.0,19.097,19.085,22.163]
[1688397213090,77.15,19.097,19.085,22.163]
[1688397218684,55.0,19.097,19.085,22.163]
[1688397219001,77.15,19.097,19.085,22.163]
[1688397222404,55.0,19.097,19.085,22.163]
[1688397224208,77.15,19.097,19.085,22.163]
[1688397224904,55.0,19.097,19.085,22.163]
[1688397225299,22.148,19.099,19.085,22.163]
[1688397226209,57.007,19.103,19.085,22.163]
[1688397226504,22.147,19.099,19.085,22.163]
[1688397227598,55.0,19.098,19.085,22.163]
[1688397227800,22.15,19.097,19.085,22.163]
[1688397228102,55.0,19.096,19.085,22.163]
[1688397228605,77.152,19.096,19.085,22.163]
[1688397230210,55.0,19.096,19.085,22.163]
[1688397230601,77.151,19.096,19.085,22.163]
[1688397239402,130.2657829,19.101,19.085,22.163]
[1688397239403,26.2377829,19.101,19.085,22.163]
[1688397239599,42.144,19.102,19.085,22.163]
[1688397241011,55.0,19.101,19.085,22.163]
[1688397242012,22.148,19.099,19.085,22.163]
[1688397242216,55.0,19.101,19.085,22.163]
[1688397242217,55.0,19.098,19.085,22.163]
[1688397242417,22.149,19.098,19.085,22.163]
[1688397242612,55.0,19.097,19.085,22.163]
[1688397243037,77.15,19.097,19.085,22.163]
[1688397243924,104.017,19.103,19.085,22.163]
[1688397244114,91.7598,19.105,19.085,22.163]
[1688397244313,91.7598,19.105,19.081,26.50485295]
[1688397244314,22.143,19.104,19.091,183.273]
[1688397244527,79.146,19.104,19.091,183.273]
[1688397246128,55.0,19.103,19.091,183.273]
[1688397247019,22.145,19.102,19.091,183.273]
[1688397247219,55.0,19.101,19.091,183.273]
[1688397247829,186.76315738,19.106,19.091,183.273]
[1688397247830,91.7598,19.109,19.091,183.273]
[1688397248044,103.944,19.116,19.091,183.273]
[1688397248239,56.965,19.117,19.092,167.7591]
[1688397248527,22.13,19.115,19.099,183.198]
[1688397248935,22.13,19.115,19.104,183.151]
[1688397251030,22.129,19.115,19.104,183.151]
[1688397251831,77.131,19.114,19.104,183.151]
[1688397252031,134.104,19.114,19.104,79.143]
[1688397252230,77.131,19.114,19.104,79.143]
[1688397253621,22.131,19.114,19.104,79.143]
[1688397255034,22.133,19.112,19.104,79.143]
[1688397255235,55.0,19.111,19.104,79.143]
[1688397256542,55.0,19.112,19.104,79.143]
[1688397257540,55.0,19.113,19.104,79.143]
[1688397257737,22.13,19.114,19.104,79.143]
[1688397259137,55.0,19.113,19.104,79.143]
[1688397259330,22.134,19.111,19.104,79.143]
[1688397259531,55.0,19.11,19.103,22.142]
[1688397259739,22.137,19.108,19.101,22.144]
[1688397260244,55.0,19.107,19.101,22.145]
[1688397260429,22.14,19.106,19.101,22.145]
[1688397260631,55.0,19.105,19.101,22.145]
[1688397261330,77.141,19.105,19.097,57.023]
[1688397262243,22.136,19.11,19.101,79.156]
[1688397262433,56.974,19.114,19.101,79.156]
[1688397262623,20.0,19.113,19.101,79.156]
[1688397263046,103.923,19.12,19.101,79.156]
[1688397263239,22.132,19.113,19.101,79.156]
[1688397264841,55.0,19.112,19.101,79.156]
[1688397265344,22.134,19.111,19.101,79.156]
[1688397265563,55.0,19.11,19.101,79.156]
[1688397266247,22.131,19.114,19.101,79.156]
[1688397266450,22.133,19.112,19.101,79.156]
[1688397266652,55.0,19.111,19.101,169.6366]
[1688397267151,56.969,19.116,19.101,169.6366]
[1688397267446,22.131,19.114,19.101,169.6366]
[1688397267629,22.133,19.112,19.101,169.6366]
[1688397268035,55.0,19.111,19.101,169.6366]
[1688397268238,77.133,19.111,19.101,169.6366]
[1688397268649,55.0,19.111,19.101,90.4806]
[1688397268835,55.0,19.111,19.101,169.6366]
[1688397269145,55.0,19.111,19.101,79.156]
[1688397269550,77.134,19.111,19.101,79.156]
[1688397270435,55.0,19.111,19.101,79.156]
[1688397270833,55.0,19.112,19.101,79.156]
[1688397272144,77.133,19.112,19.101,79.156]
[1688397272649,55.0,19.112,19.101,79.156]
[1688397273154,22.129,19.115,19.101,79.156]
[1688397274748,22.133,19.112,19.101,79.156]
[1688397274949,55.0,19.111,19.101,79.156]
[1688397277055,77.134,19.111,19.101,79.156]
[1688397278547,55.0,19.111,19.101,79.156]
[1688397278936,77.133,19.111,19.101,79.156]
[1688397281254,55.0,19.111,19.101,79.156]
[1688397282154,77.133,19.111,19.101,79.156]
[1688397282457,55.0,19.111,19.101,79.156]
[1688397282664,77.134,19.111,19.101,79.156]
[1688397283363,55.0,19.111,19.101,79.156]
[1688397283551,55.0,19.112,19.101,79.156]
[1688397283952,77.133,19.112,19.101,79.156]
[1688397284366,56.963,19.118,19.101,79.156]
[1688397284672,22.129,19.115,19.101,79.156]
[1688397284867,22.129,19.115,19.102,93.1031]
[1688397285050,22.129,19.115,19.105,183.136]
[1688397285450,55.0,19.114,19.105,183.136]
[1688397286465,77.13,19.114,19.105,79.137]
[1688397287572,77.13,19.114,19.105,183.141]
[1688397290571,3.0,19.132,19.105,183.141]
[1688397290765,22.126,19.118,19.105,183.141]
[1688397292051,55.0,19.117,19.105,183.141]
[1688397292373,77.127,19.117,19.105,183.141]
[1688397294389,77.127,19.117,19.105,22.139]
[1688397303766,181.065,19.117,19.105,22.139]
[1688397303961,79.118,19.111,19.103,22.142]
[1688397304267,79.118,19.111,19.099,57.017]
[1688397304491,55.0,19.11,19.099,57.017]
[1688397304680,22.138,19.107,19.102,22.143]
[1688397304983,56.966,19.117,19.102,126.163]
[1688397305181,103.93,19.119,19.102,126.163]
[1688397305182,79.118,19.113,19.102,126.163]
[1688397305391,56.967,19.117,19.102,126.163]
[1688397305971,22.131,19.114,19.102,126.163]
[1688397306882,77.132,19.113,19.102,222.3884]
[1688397307584,55.0,19.113,19.102,222.3884]
[1688397307975,55.0,19.114,19.102,222.3884]
[1688397308474,77.13,19.114,19.102,222.3884]
[1688397308680,55.0,19.114,19.102,222.3884]
[1688397308883,77.13,19.114,19.102,222.3884]
[1688397309481,55.0,19.114,19.102,222.3884]
[1688397310183,77.13,19.114,19.102,222.3884]
[1688397312695,55.0,19.114,19.102,222.3884]
[1688397315287,77.13,19.114,19.102,222.3884]
[1688397318594,55.0,19.114,19.102,222.3884]
[1688397320572,22.127,19.117,19.102,222.3884]
[1688397320768,22.126,19.118,19.102,222.3884]
[1688397321186,22.123,19.121,19.102,222.3884]
[1688397321376,56.942,19.125,19.102,222.3884]
[1688397321575,20.0,19.124,19.102,222.3884]
[1688397322093,22.123,19.121,19.102,222.3884]
[1688397322804,22.123,19.121,19.103,55.0]
[1688397323101,22.123,19.121,19.108,183.111]
[1688397324476,22.119,19.124,19.109,119.1821]
[1688397324677,56.936,19.127,19.113,183.062]
[1688397325695,22.118,19.125,19.113,183.062]
[1688397325989,77.119,19.124,19.113,183.062]
[1688397328181,55.0,19.124,19.113,183.062]
[1688397328497,77.118,19.124,19.113,183.062]
[1688397330694,77.119,19.124,19.113,183.062]
[1688397332800,55.0,19.124,19.113,183.062]
[1688397333127,77.118,19.124,19.113,183.062]
[1688397333302,55.0,19.124,19.113,183.062]
[1688397333995,55.0,19.125,19.113,183.062]
[1688397334699,55.0,19.129,19.113,183.062]
[1688397334898,56.923,19.131,19.113,183.062]
[1688397335677,22.114,19.129,19.113,183.062]
[1688397337099,22.111,19.131,19.114,55.0]
[1688397337305,22.111,19.131,19.119,183.009]
[1688397339011,55.0,19.13,19.119,183.009]
[1688397339186,22.113,19.129,19.119,183.009]
[1688397339388,55.0,19.128,19.119,183.009]
[1688397339794,77.114,19.128,19.119,183.009]
[1688397340185,55.0,19.128,19.119,183.009]
[1688397340910,2.0879894,19.133,19.12,20.0]
[1688397341105,2.0879894,19.133,19.123,182.965]
[1688397343999,22.101,19.14,19.124,55.0]
[1688397344199,22.101,19.14,19.128,182.916]
[1688397345499,22.101,19.14,19.128,22.113]
[1688397347902,103.77,19.149,19.129,20.0]
[1688397348102,160.641,19.149,19.135,79.015]
[1688397348402,22.094,19.146,19.135,79.015]
[1688397349300,22.093,19.147,19.135,79.015]
[1688397350996,55.0,19.146,19.135,79.015]
[1688397351196,56.874,19.148,19.135,79.015]
[1688397351414,55.0,19.147,19.135,79.015]
[1688397351803,56.867,19.15,19.135,79.015]
[1688397352006,56.862,19.152,19.135,79.015]
[1688397352306,20.0,19.151,19.135,79.015]
[1688397353124,22.09,19.149,19.135,79.015]
[1688397354021,55.0,19.148,19.135,79.015]
[1688397354224,22.093,19.147,19.135,79.015]
[1688397354405,55.0,19.146,19.135,79.015]
[1688397354605,77.093,19.146,19.135,79.015]
[1688397354901,55.0,19.146,19.135,79.015]
[1688397356029,77.093,19.146,19.135,79.015]
[1688397358204,77.093,19.146,19.135,22.105]
[1688397360413,20.0,19.145,19.134,32.94319922]
[1688397360616,78.989,19.142,19.134,10.83719922]
[1688397360806,20.0,19.141,19.134,10.83719922]
[1688397361118,22.101,19.139,19.134,10.83719922]
[1688397361312,22.104,19.137,19.134,10.83719922]
[1688397361707,56.897,19.14,19.132,22.109]
[1688397361708,77.105,19.136,19.132,22.109]
[1688397362734,77.105,19.136,19.131,22.109]
[1688397362906,77.105,19.136,19.13,22.11]
[1688397363632,77.105,19.136,19.129,22.112]
[1688397363814,77.105,19.136,19.124,56.943]
[1688397364318,77.105,19.136,19.129,22.112]
[1688397365421,56.931,19.141,19.129,22.112]
[1688397365725,98.1361,19.145,19.129,22.112]
[1688397365908,22.099,19.141,19.129,22.112]
[1688397366524,44.198,19.141,19.129,22.112]
[1688397367132,22.102,19.139,19.129,22.112]
[1688397367320,55.0,19.138,19.129,22.112]
[1688397368131,22.103,19.138,19.129,22.112]
[1688397368327,77.103,19.137,19.129,22.112]
[1688397368514,55.0,19.136,19.129,22.112]
[1688397369129,55.0,19.137,19.129,22.112]
[1688397370336,22.099,19.141,19.129,22.112]
[1688397370521,22.103,19.138,19.129,22.112]
[1688397370826,22.102,19.139,19.129,22.112]
[1688397371820,55.0,19.138,19.129,22.112]
[1688397372125,22.099,19.141,19.129,22.112]
[1688397372432,22.102,19.138,19.129,22.112]
[1688397373326,55.0,19.137,19.129,22.112]
[1688397374020,77.104,19.137,19.129,22.112]
[1688397374532,22.099,19.141,19.129,22.112]
[1688397374930,22.098,19.142,19.129,22.112]
[1688397375240,20.0,19.141,19.129,22.112]
[1688397375441,42.099,19.141,19.129,22.112]
[1688397376517,20.0,19.141,19.129,22.112]
[1688397377242,42.099,19.141,19.129,22.112]
[1688397377626,22.098,19.142,19.13,20.0]
[1688397377937,22.098,19.142,19.133,79.022]
[1688397378149,55.0,19.141,19.133,79.022]
[1688397378532,77.099,19.141,19.133,79.022]
[1688397379332,55.0,19.141,19.133,79.022]
[1688397380342,55.0,19.142,19.133,79.022]
[1688397381140,55.0,19.143,19.133,79.022]
[1688397381438,77.096,19.144,19.133,79.022]
[1688397381735,77.095,19.144,19.133,79.022]
[1688397382324,55.0,19.144,19.133,79.022]
[1688397382525,77.095,19.144,19.133,79.022]
[1688397384326,77.096,19.144,19.133,79.022]
[1688397385440,55.0,19.144,19.133,79.022]
[1688397385744,77.096,19.144,19.133,79.022]
[1688397388545,55.0,19.144,19.133,79.022]
[1688397389048,55.0,19.145,19.133,79.022]
[1688397389638,55.0,19.146,19.133,79.022]
[1688397390259,77.093,19.146,19.133,79.022]
[1688397393645,55.0,19.146,19.133,79.022]
[1688397394034,77.093,19.146,19.133,79.022]
[1688397405161,77.093,19.146,19.133,22.107]
[1688397405364,78.99,19.142,19.133,22.107]
[1688397405670,22.101,19.139,19.133,22.107]
[1688397405843,55.0,19.138,19.133,22.107]
[1688397406044,22.104,19.137,19.133,22.107]
[1688397406245,55.0,19.136,19.129,56.928]
[1688397406545,22.107,19.134,19.131,22.109]
[1688397406750,55.0,19.133,19.131,22.109]
[1688397407559,56.888,19.143,19.131,22.109]
[1688397407751,20.0,19.142,19.131,22.109]
[1688397407946,55.0,19.141,19.131,22.109]
[1688397408359,22.101,19.139,19.131,22.109]
[1688397408559,22.104,19.137,19.131,22.109]
[1688397408864,55.0,19.136,19.131,22.109]
[1688397409447,77.104,19.136,19.131,22.109]
[1688397409660,55.0,19.136,19.131,22.109]
[1688397410663,77.105,19.136,19.131,22.109]
[1688397411662,55.0,19.136,19.131,79.032]
[1688397412372,180.698,19.142,19.131,79.032]
[1688397412373,20.0,19.142,19.131,79.032]
[1688397412581,22.098,19.142,19.131,79.032]
[1688397412868,22.102,19.139,19.131,79.032]
[1688397413761,55.0,19.138,19.131,79.032]
[1688397413970,20.0,19.141,19.131,79.032]
[1688397414272,20.0,19.144,19.131,79.032]
[1688397415164,22.1,19.141,19.131,79.032]
[1688397415967,3.0,19.163,19.131,79.032]
[1688397416265,22.094,19.146,19.137,79.007]
[1688397417673,22.094,19.146,19.137,22.103]
[1688397418464,55.0,19.145,19.137,22.103]
[1688397418667,22.097,19.143,19.137,22.103]
[1688397418871,55.0,19.142,19.137,22.103]
[1688397419058,22.096,19.143,19.137,22.103]
[1688397419258,55.0,19.142,19.137,22.103]
[1688397420748,94.7127,19.152,19.137,22.103]
[1688397420957,56.874,19.148,19.137,79.008]
[1688397421657,22.094,19.145,19.137,79.008]
[1688397422069,55.0,19.144,19.137,79.008]
[1688397423188,77.095,19.144,19.137,79.008]
[1688397423558,55.0,19.144,19.137,79.008]
[1688397424473,22.093,19.147,19.137,79.008]
[1688397426475,55.0,19.146,19.137,79.008]
[1688397426775,77.093,19.146,19.137,79.008]
[1688397432872,20.0,19.145,19.128,56.93]
[1688397433181,78.996,19.14,19.128,56.93]
[1688397433485,55.0,19.139,19.13,22.11]
[1688397433681,22.104,19.137,19.13,22.11]
[1688397433882,55.0,19.136,19.13,22.111]
[1688397434083,22.107,19.135,19.129,22.111]
[1688397434386,55.0,19.134,19.129,22.111]
[1688397434591,22.108,19.133,19.129,22.111]
[1688397434789,55.0,19.132,19.129,22.111]
[1688397435877,55.0,19.133,19.129,22.111]
[1688397436073,77.108,19.133,19.129,22.111]
[1688397443497,55.0,19.133,19.129,22.111]
[1688397443675,55.0,19.134,19.129,22.111]
[1688397444387,77.107,19.134,19.129,22.111]
[1688397444913,77.107,19.134,19.129,22.112]
[1688397445092,22.107,19.134,19.129,22.112]
[1688397445291,55.0,19.14,19.129,22.112]
[1688397445499,22.107,19.134,19.129,22.112]
[1688397446192,22.107,19.134,19.126,22.116]
[1688397446399,20.0,19.133,19.126,22.115]
[1688397446703,22.11,19.131,19.125,22.116]
[1688397446877,55.0,19.13,19.101,402.3]
[1688397447082,22.115,19.127,19.114,183.054]
[1688397447388,55.0,19.126,19.115,90.3962]
[1688397447583,77.117,19.126,19.118,79.086]
[1688397448313,77.117,19.126,19.118,22.125]
[1688397450304,134.055,19.126,19.118,22.125]
[1688397450808,134.055,19.126,19.117,22.126]
[1688397451102,55.0,19.125,19.117,22.126]
[1688397451308,22.12,19.123,19.117,22.126]
[1688397451606,56.945,19.124,19.117,22.126]
[1688397451607,22.122,19.121,19.117,22.126]
[1688397452202,22.124,19.12,19.116,22.127]
[1688397452414,22.123,19.121,19.116,22.127]
[1688397452598,22.123,19.121,19.115,22.128]
[1688397453600,55.0,19.12,19.115,22.128]
[1688397453903,77.123,19.12,19.115,22.128]
[1688397454091,55.0,19.12,19.115,22.128]
[1688397454483,55.0,19.121,19.115,22.128]
[1688397454985,55.0,19.127,19.115,22.128]
[1688397455195,22.116,19.126,19.115,22.128]
[1688397456605,22.119,19.124,19.115,22.128]
[1688397456784,77.12,19.123,19.115,22.128]
[1688397456984,55.0,19.122,19.115,22.128]
[1688397457499,56.934,19.128,19.115,22.128]
[1688397458804,22.118,19.125,19.115,22.128]
[1688397459001,55.0,19.124,19.115,22.128]
[1688397459202,77.119,19.124,19.115,22.128]
[1688397460800,76.119,19.124,19.115,22.128]
[1688397462183,56.933,19.128,19.115,22.128]
[1688397462389,22.116,19.127,19.115,22.128]
[1688397463503,55.0,19.126,19.115,22.128]
[1688397463887,22.118,19.125,19.115,22.128]
[1688397464089,55.0,19.124,19.115,22.128]
[1688397464487,77.118,19.125,19.115,22.128]